[Event "55th Rubinstein Memorial-A 2019"]
[Site "Polanica-Zdroj"]
[Date "2019.08.21"]
[Round "5.11"]
[White "Malicka, Maria"]
[Black "Kucza, Karol"]
[Result "0-1"]
[ECO "B66"]
[WhiteElo "2062"]
[BlackElo "2296"]
[Annotator "NA"]
[PlyCount "76"]
[EventDate "2019.08.17"]
[EventType "swiss"]
[EventCountry "POL"]
[SourceTitle "playchess.com"]
[Source "ChessBase"]
[SourceQuality "1"]
[TimeControl "40/5400+30:1800+30"]

1. e4 {[%emt 0:00:00]} c5 {[%emt 0:00:00]} 2. Nf3 {[%emt 0:00:00]} d6 {[%emt 0:00:00]} 3. d4 {[%emt 0:00:00]} cxd4 {[%emt 0:00:00]} 4. Nxd4 {[%emt 0:00:00]} Nf6 {[%emt 0:00:01]} 5. Nc3 {[%emt 0:00:00]} Nc6 {[%emt 0:00:07]} 6. Bg5 {[%emt 0:00:00]} e6 {[%emt 0:00:17]} 7. Qd2 {[%emt 0:00:50]} a6 {[%emt 0:00:09]} 8. Nxc6 {[%emt 0:00:34]} bxc6 {[%emt 0:00:08]} 9. O-O-O {[%emt 0:00:08]} Qa5 {[%emt 0:08:42]} 10. Kb1 {[%emt 0:15:38]} Be7 {[%emt 0:06:16]} 11. Bxf6 {[%emt 0:03:34]} gxf6 {[%emt 0:02:28]} 12. Bc4 {[%emt 0:00:42]} Bd7 {[%emt 0:13:36]} 13. f4 {[%emt 0:01:34]} Qb4 {[%emt 0:04:46]} 14. Bb3 {[%emt 0:06:11]} a5 {[%emt 0:00:10]} 15. f5 {[%emt 0:10:51]} Rb8 {[%emt 0:10:05]} 16. Rhe1 {[%emt 0:13:51]} c5 {[%emt 0:05:13]} 17. a3 {[%emt 0:00:18]} Qb7 {[%emt 0:00:28]} 18. Qc1 {[%emt 0:00:33]} Bf8 {[%emt 0:09:10]} 19. Ka1 {[%emt 0:09:58]} c4 {[%emt 0:07:34]} 20. Bxc4 {[%emt 0:05:02]} Bh6 {[%emt 0:00:06]} 21. Qb1 {[%emt 0:00:13]} Bf4 {[%emt 0:03:30]} 22. Qa2 {[%emt 0:00:53]} Ke7 {[%emt 0:01:20]} 23. a4 {[%emt 0:12:38]} Bxh2 {[%emt 0:07:17]} 24. Nb5 {[%emt 0:04:40]} Be5 {[%emt 0:00:12]} 25. c3 {[%emt 0:05:47]} Rhg8 {[%emt 0:05:20]} 26. Re2 {[%emt 0:01:06]} Rg4 {[%emt 0:02:05]} 27. fxe6 {[%emt 0:00:26]} fxe6 {[%emt 0:00:08]} 28. Rh1 {[%emt 0:00:50]} Rh8 {[%emt 0:00:11]} 29. Qb1 {[%emt 0:03:08]} d5 {[%emt 0:01:32]} 30. exd5 {[%emt 0:02:29]} Rxc4 {[%emt 0:02:29]} 31. Rxh7+ Rxh7 {[%emt 0:00:06]} 32. Qxh7+ {[%emt 0:00:07]} Kd8 {[%emt 0:00:22]} 33. Qg8+ {[%emt 0:03:36]} Be8 {[%emt 0:00:18]} 34. dxe6 {[%emt 0:00:47]} Rxa4+ {[%emt 0:00:16]} 35. Na3 {[%emt 0:00:25]} Rxa3+ {[%emt 0:00:49]} 36. bxa3 {[%emt 0:00:20]} Bxc3+ {[%emt 0:00:07]} 37. Ka2 {[%emt 0:00:01]} Qd5+ {[%emt 0:00:09]} 38. Kb1 {[%emt 0:00:03]} Qd1+ {[%emt 0:00:05]} 0-1

[Event "55th Rubinstein Memorial-A 2019"]
[Site "Polanica-Zdroj"]
[Date "2019.08.21"]
[Round "5.12"]
[White "Mis, Mieszko"]
[Black "Praczukowski, Stanislaw"]
[Result "1/2-1/2"]
[ECO "D91"]
[WhiteElo "2296"]
[BlackElo "2126"]
[Annotator "NA"]
[PlyCount "187"]
[EventDate "2019.08.17"]
[EventType "swiss"]
[EventCountry "POL"]
[SourceTitle "playchess.com"]
[Source "ChessBase"]
[SourceQuality "1"]
[TimeControl "40/5400+30:1800+30"]

1. d4 {[%emt 0:00:00]} Nf6 {[%emt 0:00:00]} 2. c4 {[%emt 0:00:00]} g6 {[%emt 0:00:00]} 3. Nc3 {[%emt 0:00:48]} d5 {[%emt 0:00:00]} 4. Nf3 {[%emt 0:00:40]} Bg7 {[%emt 0:00:12]} 5. Bg5 {[%emt 0:00:18]} Ne4 {[%emt 0:00:21]} 6. h4 {[%emt 0:00:52]} Nxc3 {[%emt 0:07:43]} 7. bxc3 {[%emt 0:00:47]} O-O {[%emt 0:00:36]} 8. e3 {[%emt 0:04:41]} h6 {[%emt 0:06:40]} 9. Bf4 {[%emt 0:00:16]} c5 {[%emt 0:00:16]} 10. cxd5 {[%emt 0:01:20]} Qxd5 {[%emt 0:01:32]} 11. Be2 {[%emt 0:00:54]} Nc6 {[%emt 0:05:05]} 12. O-O {[%emt 0:02:56]} Bg4 {[%emt 0:05:01]} 13. Rb1 {[%emt 0:22:33]} Rfd8 {[%emt 0:01:57]} 14. Qa4 {[%emt 0:06:01]} a6 {[%emt 0:12:06]} 15. c4 {[%emt 0:07:31]} Qd7 {[%emt 0:02:48]} 16. d5 {[%emt 0:17:48]} Nd4 {[%emt 0:03:21]} 17. Qd1 {[%emt 0:01:43]} Nxe2+ {[%emt 0:00:18]} 18. Qxe2 {[%emt 0:00:02]} b5 {[%emt 0:10:54]} 19. e4 {[%emt 0:03:21]} bxc4 {[%emt 0:02:12]} 20. Qe3 {[%emt 0:05:26]} Bxf3 {[%emt 0:02:03]} 21. Qxf3 {[%emt 0:00:08]} c3 {[%emt 0:02:40]} 22. Qg3 {[%emt 0:02:11]} Qa4 {[%emt 0:02:47]} 23. Rbe1 {[%emt 0:06:32]} c2 {[%emt 0:11:20]} 24. Be5 {[%emt 0:01:33]} c1=Q {[%emt 0:01:53]} 25. Rxc1 {[%emt 0:00:11]} Qxe4 {[%emt 0:00:07]} 26. Bxg7 {[%emt 0:01:24]} Kxg7 {[%emt 0:00:12]} 27. Qc3+ {[%emt 0:01:33]} Qd4 {[%emt 0:00:33]} 28. Qxc5 {[%emt 0:01:25]} Rxd5 {[%emt 0:03:16]} 29. Qxe7 {[%emt 0:00:49]} Rd7 {[%emt 0:00:48]} 30. Qc5 {[%emt 0:02:08]} Qxh4 {[%emt 0:02:41]} 31. Rfd1 {[%emt 0:02:19]} Rad8 {[%emt 0:02:32]} 32. Rxd7 {[%emt 0:00:39]} Rxd7 {[%emt 0:00:07]} 33. Qe5+ {[%emt 0:00:06]} Kh7 {[%emt 0:04:06]} 34. g3 {[%emt 0:01:38]} Qe7 {[%emt 0:02:15]} 35. Qf4 {[%emt 0:03:18]} Qd6 {[%emt 0:01:48]} 36. Qc4 {[%emt 0:01:12]} Qd3 {[%emt 0:01:02]} 37. Qc6 {[%emt 0:01:07]} Rd6 {[%emt 0:01:59]} 38. Qe8 {[%emt 0:01:46]} Rf6 {[%emt 0:00:46]} 39. Qe1 {[%emt 0:00:55]} h5 {[%emt 0:01:21]} 40. Qc3 {[%emt 0:00:00]} Qf5 {[%emt 0:00:00]} 41. Qd4 {[%emt 0:01:40]} Re6 {[%emt 0:09:27]} 42. a3 {[%emt 0:07:52]} Qe5 {[%emt 0:02:15]} 43. Qb4 {[%emt 0:01:58]} Qe4 {[%emt 0:02:36]} 44. Rc7 {[%emt 0:05:11]} Qxb4 {[%emt 0:02:21]} 45. axb4 {[%emt 0:00:01]} Kg7 {[%emt 0:01:23]} 46. Rb7 {[%emt 0:00:04]} Re5 {[%emt 0:00:58]} 47. Rb6 {[%emt 0:00:06]} Rb5 {[%emt 0:00:04]} 48. Rxa6 {[%emt 0:00:06]} Rxb4 {[%emt 0:00:05]} 49. Kg2 {[%emt 0:00:30]} Rb5 {[%emt 0:00:06]} 50. Rc6 {[%emt 0:00:18]} Rf5 {[%emt 0:00:06]} 51. Rd6 {[%emt 0:00:23]} Kh6 {[%emt 0:00:07]} 52. Rd7 {[%emt 0:00:32]} Kg5 {[%emt 0:00:15]} 53. Rd4 {[%emt 0:00:06]} Ra5 {[%emt 0:00:24]} 54. Rc4 {[%emt 0:00:13]} f6 {[%emt 0:00:21]} 55. Rd4 {[%emt 0:00:15]} Ra2 {[%emt 0:00:14]} 56. Rc4 {[%emt 0:00:25]} Re2 {[%emt 0:00:17]} 57. Rd4 {[%emt 0:00:24]} f5 {[%emt 0:00:18]} 58. Kf3 {[%emt 0:00:22]} Re8 {[%emt 0:00:22]} 59. Rc4 {[%emt 0:00:43]} Rh8 {[%emt 0:00:17]} 60. Rh4 {[%emt 0:01:06]} Ra8 {[%emt 0:00:10]} 61. Rc4 {[%emt 0:00:18]} Ra3+ {[%emt 0:00:20]} 62. Kg2 {[%emt 0:00:06]} Ra6 {[%emt 0:00:08]} 63. Rb4 {[%emt 0:01:09]} Kh6 {[%emt 0:00:19]} 64. Rc4 {[%emt 0:01:11]} Rf6 {[%emt 0:00:31]} 65. Kf3 {[%emt 0:01:12]} g5 {[%emt 0:00:42]} 66. Rb4 {[%emt 0:00:58]} Ra6 {[%emt 0:00:29]} 67. Kg2 {[%emt 0:00:31]} Kg6 {[%emt 0:00:07]} 68. Rb8 {[%emt 0:00:25]} g4 {[%emt 0:02:14]} 69. Rc8 {[%emt 0:01:43]} Rf6 {[%emt 0:00:21]} 70. Rc4 {[%emt 0:00:24]} Kg5 {[%emt 0:01:21]} 71. Rc5 {[%emt 0:03:59]} h4 {[%emt 0:00:41]} 72. gxh4+ {[%emt 0:01:17]} Kxh4 {[%emt 0:00:08]} 73. Rc8 {[%emt 0:00:34]} Ra6 {[%emt 0:00:22]} 74. Rg8 {[%emt 0:01:07]} Rb6 {[%emt 0:00:46]} 75. Rf8 {[%emt 0:00:40]} Kg5 {[%emt 0:00:10]} 76. Rg8+ {[%emt 0:00:03]} Kf4 {[%emt 0:00:08]} 77. Rc8 {[%emt 0:00:26]} Rb2 {[%emt 0:00:09]} 78. Rc4+ {[%emt 0:00:42]} Kg5 {[%emt 0:00:07]} 79. Rc5 {[%emt 0:00:05]} Rb3 {[%emt 0:00:16]} 80. Ra5 {[%emt 0:00:43]} Rf3 {[%emt 0:00:08]} 81. Rb5 {[%emt 0:00:18]} Kh4 {[%emt 0:00:24]} 82. Rb8 {[%emt 0:00:26]} Ra3 {[%emt 0:01:10]} 83. Rg8 {[%emt 0:00:30]} Ra2 {[%emt 0:00:52]} 84. Rf8 {[%emt 0:00:52]} Kg5 {[%emt 0:00:07]} 85. Rb8 {[%emt 0:00:32]} f4 {[%emt 0:01:41]} 86. Rg8+ {[%emt 0:00:13]} Kf5 {[%emt 0:00:07]} 87. Rf8+ {[%emt 0:00:03]} Ke4 {[%emt 0:00:07]} 88. Re8+ {[%emt 0:00:04]} Kd3 {[%emt 0:01:58]} 89. Rd8+ {[%emt 0:00:22]} Ke2 {[%emt 0:01:57]} 90. Re8+ {[%emt 0:00:04]} Kd1 {[%emt 0:00:40]} 91. Re4 {[%emt 0:00:28]} g3 {[%emt 0:00:52]} 92. Rxf4 {[%emt 0:00:04]} gxf2 {[%emt 0:00:10]} 93. Rxf2 {[%emt 0:00:09]} Rxf2+ {[%emt 0:00:05]} 94. Kxf2 {[%emt 0:00:05]} 1/2-1/2

[Event "55th Rubinstein Memorial-A 2019"]
[Site "Polanica-Zdroj"]
[Date "2019.08.21"]
[Round "5.13"]
[White "Domanski, Lukasz"]
[Black "Lapaj, Mateusz"]
[Result "1-0"]
[ECO "B31"]
[WhiteElo "2058"]
[BlackElo "2233"]
[Annotator "NA"]
[PlyCount "45"]
[EventDate "2019.08.17"]
[EventType "swiss"]
[EventCountry "POL"]
[SourceTitle "playchess.com"]
[Source "ChessBase"]
[SourceQuality "1"]
[TimeControl "40/5400+30:1800+30"]

1. e4 {[%emt 0:00:39]} c5 {[%emt 0:00:00]} 2. Nf3 {[%emt 0:00:40]} Nc6 {[%emt 0:00:00]} 3. Bb5 {[%emt 0:00:05]} g6 {[%emt 0:00:00]} 4. O-O {[%emt 0:00:05]} Bg7 {[%emt 0:00:00]} 5. Re1 {[%emt 0:00:11]} Nf6 {[%emt 0:04:17]} 6. e5 {[%emt 0:00:40]} Nd5 {[%emt 0:00:09]} 7. Nc3 {[%emt 0:00:12]} Nxc3 {[%emt 0:10:56]} 8. dxc3 {[%emt 0:00:57]} O-O {[%emt 0:02:07]} 9. Bg5 {[%emt 0:00:37]} Qc7 {[%emt 0:05:20]} 10. Qd5 {[%emt 0:00:35]} b6 {[%emt 0:06:39]} 11. Rad1 {[%emt 0:00:29]} a6 {[%emt 0:13:35]} 12. Bc4 {[%emt 0:00:36]} Rb8 {[%emt 0:16:46]} 13. Qe4 {[%emt 0:06:53]} Bb7 {[%emt 0:06:56]} 14. Qh4 {[%emt 0:04:29]} Nxe5 {[%emt 0:08:49]} 15. Nxe5 {[%emt 0:02:33]} Bxe5 {[%emt 0:00:11]} 16. Bxe7 {[%emt 0:02:57]} Rfe8 {[%emt 0:02:14]} 17. f4 {[%emt 0:09:57]} Bg7 {[%emt 0:15:43]} 18. Bd6 {[%emt 0:02:11]} Qc6 {[%emt 0:00:27]} 19. Bd5 {[%emt 0:00:51]} Rxe1+ {[%emt 0:04:48]} 20. Qxe1 {[%emt 0:00:32]} Qxd6 {[%emt 0:00:12]} 21. Bxf7+ {[%emt 0:00:23]} Kxf7 {[%emt 0:00:02]} 22. Rxd6 {[%emt 0:00:12]} Bc6 {[%emt 0:00:01]} 23. Qh4 {[%emt 0:08:09]} 1-0

[Event "55th Rubinstein Memorial-A 2019"]
[Site "Polanica-Zdroj"]
[Date "2019.08.21"]
[Round "5.14"]
[White "Siekanski, Janusz"]
[Black "Zych, Marek"]
[Result "0-1"]
[ECO "D85"]
[WhiteElo "2263"]
[BlackElo "2061"]
[Annotator "NA"]
[PlyCount "78"]
[EventDate "2019.08.17"]
[EventType "swiss"]
[EventCountry "POL"]
[SourceTitle "playchess.com"]
[Source "ChessBase"]
[SourceQuality "1"]
[TimeControl "40/5400+30:1800+30"]

1. d4 {[%emt 0:00:00]} Nf6 {[%emt 0:00:00]} 2. c4 {[%emt 0:00:00]} g6 {[%emt 0:00:07]} 3. Nc3 {[%emt 0:00:00]} d5 {[%emt 0:00:09]} 4. cxd5 {[%emt 0:00:01]} Nxd5 {[%emt 0:00:11]} 5. e4 {[%emt 0:00:14]} Nxc3 {[%emt 0:00:11]} 6. bxc3 {[%emt 0:00:09]} Bg7 {[%emt 0:00:10]} 7. Be3 {[%emt 0:02:30]} c5 {[%emt 0:01:30]} 8. Qd2 {[%emt 0:00:30]} cxd4 {[%emt 0:04:39]} 9. cxd4 {[%emt 0:00:10]} O-O {[%emt 0:01:37]} 10. Nf3 {[%emt 0:06:11]} Nc6 {[%emt 0:06:05]} 11. Rc1 {[%emt 0:08:31]} Bg4 {[%emt 0:09:00]} 12. d5 {[%emt 0:00:23]} Bxf3 {[%emt 0:00:39]} 13. gxf3 {[%emt 0:00:33]} Ne5 {[%emt 0:00:48]} 14. Be2 {[%emt 0:01:31]} Qd7 {[%emt 0:02:16]} 15. h3 {[%emt 0:17:01]} Rfc8 {[%emt 0:00:47]} 16. f4 {[%emt 0:01:15]} Rxc1+ {[%emt 0:00:10]} 17. Qxc1 {[%emt 0:00:06]} Rc8 {[%emt 0:00:08]} 18. Qa3 {[%emt 0:16:35]} Nc4 {[%emt 0:00:42]} 19. Qxa7 {[%emt 0:01:06]} Nxe3 {[%emt 0:01:04]} 20. Qxe3 {[%emt 0:00:28]} Rc3 {[%emt 0:00:18]} 21. Qd2 {[%emt 0:01:12]} Rxh3 {[%emt 0:05:04]} 22. Rxh3 {[%emt 0:00:21]} Qxh3 {[%emt 0:00:03]} 23. e5 {[%emt 0:00:26]} Qh1+ {[%emt 0:00:35]} 24. Bf1 {[%emt 0:00:02]} Qe4+ {[%emt 0:00:06]} 25. Be2 {[%emt 0:01:25]} Bh6 {[%emt 0:00:40]} 26. d6 {[%emt 0:02:39]} Bxf4 {[%emt 0:00:13]} 27. Qd3 {[%emt 0:00:47]} Qb4+ {[%emt 0:00:53]} 28. Kf1 {[%emt 0:00:39]} exd6 {[%emt 0:00:01]} 29. exd6 {[%emt 0:01:57]} Qxd6 {[%emt 0:00:29]} 30. Qxd6 {[%emt 0:00:11]} Bxd6 {[%emt 0:00:03]} 31. a4 {[%emt 0:01:13]} b6 {[%emt 0:00:28]} 32. Bb5 {[%emt 0:03:33]} Kg7 {[%emt 0:00:37]} 33. Be8 {[%emt 0:04:14]} f5 {[%emt 0:00:13]} 34. Kg2 {[%emt 0:03:53]} g5 {[%emt 0:00:24]} 35. f3 {[%emt 0:00:46]} Kf6 {[%emt 0:00:06]} 36. Bh5 {[%emt 0:06:09]} Ke5 {[%emt 0:00:28]} 37. Bf7 {[%emt 0:00:11]} Kf4 {[%emt 0:00:12]} 38. Bh5 {[%emt 0:00:14]} g4 {[%emt 0:00:14]} 39. Bf7 {[%emt 0:00:07]} Kg5 {[%emt 0:00:03]} 0-1

[Event "55th Rubinstein Memorial-A 2019"]
[Site "Polanica-Zdroj"]
[Date "2019.08.21"]
[Round "5.15"]
[White "Lukasiewicz, Krzysztof"]
[Black "Wysocki, Mateusz"]
[Result "1-0"]
[ECO "B43"]
[WhiteElo "2185"]
[BlackElo "1786"]
[Annotator "NA"]
[PlyCount "69"]
[EventDate "2019.08.17"]
[EventType "swiss"]
[EventCountry "POL"]
[SourceTitle "playchess.com"]
[Source "ChessBase"]
[SourceQuality "1"]
[TimeControl "40/5400+30:1800+30"]

1. e4 {[%emt 0:00:00]} c5 {[%emt 0:00:00]} 2. Nf3 {[%emt 0:00:00]} e6 {[%emt 0:00:19]} 3. d4 {[%emt 0:00:00]} cxd4 {[%emt 0:00:08]} 4. Nxd4 {[%emt 0:00:00]} a6 {[%emt 0:00:13]} 5. Nc3 {[%emt 0:00:04]} Qc7 {[%emt 0:00:39]} 6. g3 {[%emt 0:00:06]} Nc6 {[%emt 0:00:05]} 7. Bg2 {[%emt 0:00:03]} Nf6 {[%emt 0:00:11]} 8. O-O {[%emt 0:00:19]} Be7 {[%emt 0:00:32]} 9. Re1 {[%emt 0:00:12]} d6 {[%emt 0:00:48]} 10. Nxc6 {[%emt 0:00:06]} bxc6 {[%emt 0:00:08]} 11. e5 {[%emt 0:00:04]} dxe5 {[%emt 0:03:14]} 12. Rxe5 {[%emt 0:01:53]} O-O {[%emt 0:03:43]} 13. Bf4 {[%emt 0:04:13]} Bd6 {[%emt 0:09:57]} 14. Rxe6 {[%emt 0:02:33]} Bxe6 {[%emt 0:01:20]} 15. Bxd6 {[%emt 0:00:05]} Qb6 {[%emt 0:00:52]} 16. Bxf8 {[%emt 0:00:19]} Rxf8 {[%emt 0:00:06]} 17. b3 {[%emt 0:04:51]} Rd8 {[%emt 0:08:02]} 18. Qe1 {[%emt 0:03:12]} Bf5 {[%emt 0:00:40]} 19. Rc1 {[%emt 0:02:38]} c5 {[%emt 0:02:56]} 20. Qe5 {[%emt 0:03:19]} Bg6 {[%emt 0:14:39]} 21. Na4 {[%emt 0:27:09]} Qb4 {[%emt 0:02:24]} 22. Qxc5 {[%emt 0:00:16]} Qd2 {[%emt 0:00:06]} 23. Qe3 {[%emt 0:00:04]} Bxc2 {[%emt 0:05:50]} 24. Qxd2 {[%emt 0:00:19]} Rxd2 {[%emt 0:00:08]} 25. Nc5 {[%emt 0:01:01]} h5 {[%emt 0:00:26]} 26. Nxa6 {[%emt 0:02:38]} Ng4 {[%emt 0:01:09]} 27. Nb4 {[%emt 0:02:52]} Bd1 {[%emt 0:03:52]} 28. Rc8+ {[%emt 0:09:32]} Kh7 {[%emt 0:00:08]} 29. Rc5 {[%emt 0:00:16]} g6 {[%emt 0:03:57]} 30. Rd5 {[%emt 0:01:15]} Rxf2 {[%emt 0:01:48]} 31. Rxd1 {[%emt 0:00:28]} Rxg2+ {[%emt 0:00:05]} 32. Kxg2 {[%emt 0:00:02]} Ne3+ {[%emt 0:00:08]} 33. Kf3 {[%emt 0:00:10]} Nxd1 {[%emt 0:00:04]} 34. Nd5 {[%emt 0:00:07]} Nb2 {[%emt 0:00:31]} 35. Ke4 1-0

[Event "55th Rubinstein Memorial-A 2019"]
[Site "Polanica-Zdroj"]
[Date "2019.08.21"]
[Round "5.16"]
[White "Kozlowski, Pawel"]
[Black "Niedbala, Bartlomiej"]
[Result "0-1"]
[ECO "A02"]
[WhiteElo "1763"]
[BlackElo "2169"]
[Annotator "NA"]
[PlyCount "122"]
[EventDate "2019.08.17"]
[EventType "swiss"]
[EventCountry "POL"]
[SourceTitle "playchess.com"]
[Source "ChessBase"]
[SourceQuality "1"]
[TimeControl "40/5400+30:1800+30"]

1. f4 {[%emt 0:03:57]} Nh6 {[%emt 0:04:18]} 2. Nf3 {[%emt 0:01:46]} d5 {[%emt 0:00:18]} 3. b3 {[%emt 0:00:47]} Bg4 {[%emt 0:04:32]} 4. e3 {[%emt 0:00:48]} Nf5 {[%emt 0:04:05]} 5. Be2 {[%emt 0:03:20]} e6 {[%emt 0:01:28]} 6. O-O {[%emt 0:03:50]} Bxf3 {[%emt 0:05:31]} 7. Bxf3 {[%emt 0:03:35]} Qf6 {[%emt 0:00:15]} 8. d4 {[%emt 0:01:43]} c6 {[%emt 0:09:11]} 9. Qd3 {[%emt 0:05:01]} Nd7 {[%emt 0:02:22]} 10. c4 {[%emt 0:02:23]} h5 {[%emt 0:07:43]} 11. Nc3 {[%emt 0:02:28]} g6 {[%emt 0:05:36]} 12. Bd2 {[%emt 0:04:09]} Bg7 {[%emt 0:00:39]} 13. cxd5 {[%emt 0:27:19]} exd5 {[%emt 0:00:16]} 14. Bxd5 {[%emt 0:00:15]} cxd5 {[%emt 0:03:51]} 15. Nxd5 {[%emt 0:00:08]} Qd8 {[%emt 0:12:23]} 16. Bb4 {[%emt 0:04:36]} Nf6 {[%emt 0:00:14]} 17. Qb5+ {[%emt 0:00:16]} Qd7 {[%emt 0:00:04]} 18. Nc7+ {[%emt 0:00:07]} Kd8 {[%emt 0:00:05]} 19. Qxd7+ {[%emt 0:09:51]} Kxd7 {[%emt 0:00:07]} 20. Nxa8 {[%emt 0:00:04]} Rxa8 {[%emt 0:00:06]} 21. Bd2 {[%emt 0:10:52]} Ne4 {[%emt 0:02:17]} 22. Rad1 {[%emt 0:01:55]} Nxd2 {[%emt 0:00:40]} 23. Rxd2 {[%emt 0:00:02]} Nxe3 {[%emt 0:00:02]} 24. Re1 {[%emt 0:00:48]} Nf5 {[%emt 0:00:19]} 25. Red1 {[%emt 0:00:46]} Re8 {[%emt 0:00:36]} 26. g3 {[%emt 0:01:21]} Kd6 {[%emt 0:00:37]} 27. d5 {[%emt 0:00:45]} Re4 {[%emt 0:00:33]} 28. Rc1 {[%emt 0:01:58]} Bd4+ {[%emt 0:00:15]} 29. Kg2 {[%emt 0:01:21]} Be3 {[%emt 0:00:39]} 30. Re1 {[%emt 0:01:35]} Rxf4 {[%emt 0:04:46]} 31. gxf4 {[%emt 0:05:49]} Bxd2 {[%emt 0:00:05]} 32. Re8 {[%emt 0:01:07]} Kxd5 {[%emt 0:00:15]} 33. Rd8+ {[%emt 0:00:41]} Nd6 {[%emt 0:00:01]} 34. Kf3 {[%emt 0:00:11]} Bc3 {[%emt 0:01:16]} 35. Rd7 {[%emt 0:00:58]} Bf6 {[%emt 0:01:02]} 36. Rc7 {[%emt 0:00:17]} a5 {[%emt 0:00:22]} 37. a4 {[%emt 0:00:41]} b6 {[%emt 0:00:01]} 38. h3 {[%emt 0:00:38]} Bd4 {[%emt 0:00:17]} 39. Rd7 {[%emt 0:00:35]} Bc5 {[%emt 0:00:12]} 40. Re7 {[%emt 0:00:00]} Kd4 {[%emt 0:00:00]} 41. f5 {[%emt 0:03:15]} g5 {[%emt 0:00:54]} 42. f6 {[%emt 0:00:59]} Kd5 {[%emt 0:00:08]} 43. h4 {[%emt 0:03:07]} gxh4 {[%emt 0:00:16]} 44. Kf4 {[%emt 0:02:45]} h3 {[%emt 0:01:12]} 45. Re5+ {[%emt 0:00:24]} Kc6 {[%emt 0:00:33]} 46. Rxh5 {[%emt 0:00:13]} Bd4 {[%emt 0:00:02]} 47. Rxh3 {[%emt 0:02:36]} Bxf6 {[%emt 0:00:02]} 48. Rh5 {[%emt 0:01:31]} Bd4 {[%emt 0:00:07]} 49. Kf3 {[%emt 0:00:57]} f6 {[%emt 0:00:17]} 50. Ke2 {[%emt 0:00:45]} f5 {[%emt 0:00:09]} 51. Kd3 {[%emt 0:00:28]} Bc5 {[%emt 0:00:01]} 52. Rh4 {[%emt 0:02:50]} Kd5 {[%emt 0:00:02]} 53. Rh5 {[%emt 0:00:25]} Ke5 {[%emt 0:00:01]} 54. Rh8 {[%emt 0:01:00]} Kf4 {[%emt 0:00:08]} 55. Ke2 {[%emt 0:01:05]} Ke4 {[%emt 0:00:03]} 56. Rh3 {[%emt 0:02:33]} f4 {[%emt 0:00:04]} 57. Rh6 {[%emt 0:02:06]} f3+ {[%emt 0:00:05]} 58. Kf1 {[%emt 0:00:02]} Nf5 {[%emt 0:00:07]} 59. Re6+ {[%emt 0:00:14]} Kd3 {[%emt 0:00:06]} 60. Rg6 {[%emt 0:00:38]} Kc3 {[%emt 0:00:01]} 61. Rg5 {[%emt 0:00:29]} Nd4 {[%emt 0:00:08]} 0-1

[Event "55th Rubinstein Memorial-A 2019"]
[Site "Polanica-Zdroj"]
[Date "2019.08.21"]
[Round "5.17"]
[White "Mazalon, Mariusz"]
[Black "Skiba, Aleksandra"]
[Result "1-0"]
[ECO "E06"]
[WhiteElo "2012"]
[BlackElo "1703"]
[Annotator "NA"]
[PlyCount "71"]
[EventDate "2019.08.17"]
[EventType "swiss"]
[EventCountry "POL"]
[SourceTitle "playchess.com"]
[Source "ChessBase"]
[SourceQuality "1"]
[TimeControl "40/5400+30:1800+30"]

1. d4 {[%emt 0:05:46]} Nf6 {[%emt 0:00:00]} 2. c4 {[%emt 0:00:21]} e6 {[%emt 0:00:00]} 3. Nf3 {[%emt 0:01:22]} d5 {[%emt 0:00:21]} 4. g3 {[%emt 0:00:54]} Be7 {[%emt 0:00:15]} 5. Bg2 {[%emt 0:00:07]} O-O {[%emt 0:00:10]} 6. O-O {[%emt 0:00:07]} dxc4 {[%emt 0:01:13]} 7. Na3 {[%emt 0:00:26]} Bxa3 {[%emt 0:03:25]} 8. bxa3 {[%emt 0:08:21]} Bd7 {[%emt 0:03:26]} 9. Ne5 {[%emt 0:06:04]} Bc6 {[%emt 0:02:06]} 10. f3 {[%emt 0:00:15]} b5 {[%emt 0:15:33]} 11. a4 {[%emt 0:04:14]} a6 {[%emt 0:02:45]} 12. Ba3 {[%emt 0:10:06]} Nd5 {[%emt 0:08:16]} 13. Bxf8 {[%emt 0:12:12]} Ne3 {[%emt 0:00:06]} 14. Qd2 {[%emt 0:16:19]} Nxf1 {[%emt 0:00:59]} 15. Rxf1 {[%emt 0:03:35]} Qxf8 {[%emt 0:01:09]} 16. Rb1 {[%emt 0:02:24]} Qd6 {[%emt 0:14:07]} 17. e3 {[%emt 0:00:25]} Be8 {[%emt 0:01:11]} 18. f4 {[%emt 0:01:49]} Ra7 {[%emt 0:01:25]} 19. Nxc4 {[%emt 0:01:28]} Qd8 {[%emt 0:05:37]} 20. Qb2 {[%emt 0:05:57]} c6 {[%emt 0:05:16]} 21. Qb4 {[%emt 0:04:07]} a5 {[%emt 0:02:40]} 22. Qc5 {[%emt 0:00:34]} Ra6 {[%emt 0:04:04]} 23. Nd6 {[%emt 0:03:46]} b4 {[%emt 0:04:23]} 24. Rc1 {[%emt 0:00:32]} Nd7 {[%emt 0:02:35]} 25. Qc4 {[%emt 0:00:50]} Nb8 {[%emt 0:00:06]} 26. Nxe8 {[%emt 0:03:32]} Qxe8 {[%emt 0:00:07]} 27. Qc5 {[%emt 0:00:13]} g6 {[%emt 0:02:28]} 28. Qd6 {[%emt 0:00:38]} c5 {[%emt 0:05:23]} 29. Qxc5 {[%emt 0:00:24]} Nd7 {[%emt 0:02:03]} 30. Qb5 {[%emt 0:00:49]} Ra7 {[%emt 0:00:41]} 31. Bb7 {[%emt 0:01:10]} Qe7 {[%emt 0:02:31]} 32. Rc7 {[%emt 0:00:39]} b3 {[%emt 0:01:58]} 33. axb3 {[%emt 0:00:17]} Qa3 {[%emt 0:01:02]} 34. Qxd7 {[%emt 0:00:15]} Qa1+ {[%emt 0:00:19]} 35. Kg2 {[%emt 0:00:15]} Qa2+ {[%emt 0:00:15]} 36. Kh3 {[%emt 0:00:07]} 1-0

[Event "55th Rubinstein Memorial-A 2019"]
[Site "Polanica-Zdroj"]
[Date "2019.08.21"]
[Round "5.18"]
[White "Rak, Maciej"]
[Black "Kopica, Paulina"]
[Result "1/2-1/2"]
[ECO "C03"]
[WhiteElo "1779"]
[BlackElo "1932"]
[Annotator "NA"]
[PlyCount "61"]
[EventDate "2019.08.17"]
[EventType "swiss"]
[EventCountry "POL"]
[SourceTitle "playchess.com"]
[Source "ChessBase"]
[SourceQuality "1"]
[TimeControl "40/5400+30:1800+30"]

1. e4 {[%emt 0:00:00]} e6 {[%emt 0:00:00]} 2. d4 {[%emt 0:00:11]} d5 {[%emt 0:00:00]} 3. Nd2 {[%emt 0:00:17]} a6 {[%emt 0:00:00]} 4. Bd3 {[%emt 0:00:43]} c5 {[%emt 0:00:00]} 5. dxc5 {[%emt 0:00:32]} Bxc5 {[%emt 0:00:09]} 6. Ngf3 {[%emt 0:00:43]} Nc6 {[%emt 0:00:43]} 7. O-O {[%emt 0:00:50]} Nge7 {[%emt 0:04:39]} 8. exd5 {[%emt 0:03:38]} exd5 {[%emt 0:01:32]} 9. Nb3 {[%emt 0:01:51]} Bb6 {[%emt 0:00:31]} 10. c3 {[%emt 0:02:57]} Bf5 {[%emt 0:04:25]} 11. Bxf5 {[%emt 0:03:30]} Nxf5 {[%emt 0:00:05]} 12. Re1+ {[%emt 0:00:51]} Nfe7 {[%emt 0:02:10]} 13. Bg5 {[%emt 0:06:03]} O-O {[%emt 0:05:50]} 14. Nbd4 {[%emt 0:06:22]} Qd7 {[%emt 0:04:37]} 15. Bxe7 {[%emt 0:04:40]} Nxe7 {[%emt 0:00:09]} 16. Qd3 {[%emt 0:04:29]} Ng6 {[%emt 0:10:06]} 17. Ne5 {[%emt 0:02:34]} Nxe5 {[%emt 0:05:22]} 18. Rxe5 {[%emt 0:00:05]} Bc7 {[%emt 0:00:17]} 19. Re2 {[%emt 0:05:33]} Rfe8 {[%emt 0:02:42]} 20. Rae1 {[%emt 0:02:07]} Rxe2 {[%emt 0:05:56]} 21. Qxe2 {[%emt 0:01:29]} g6 {[%emt 0:00:27]} 22. g3 {[%emt 0:01:59]} Kf8 {[%emt 0:01:27]} 23. Qf3 {[%emt 0:11:24]} Re8 {[%emt 0:04:38]} 24. Rd1 {[%emt 0:05:19]} Be5 {[%emt 0:13:35]} 25. Kg2 {[%emt 0:03:28]} Qa4 {[%emt 0:05:49]} 26. a3 {[%emt 0:03:56]} Kg7 {[%emt 0:07:32]} 27. Rd2 {[%emt 0:02:06]} Rd8 {[%emt 0:01:29]} 28. h4 {[%emt 0:10:06]} h5 {[%emt 0:04:34]} 29. Qd1 {[%emt 0:12:57]} Qxd1 {[%emt 0:02:36]} 30. Rxd1 {[%emt 0:00:01]} Kf6 {[%emt 0:00:58]} 31. Kf3 {[%emt 0:01:31]} 1/2-1/2